bitfinex/quotes_ETHUSD_20211001
["timestamp","ask_amount","ask_price","bid_price","bid_amount"]
[1633062120512,1.0985084,3006.8,3006.7,0.2]
[1633062121514,2.04540655,3006.8,3006.7,0.2]
[1633062121714,3.3267607,3007.1,3006.5,0.003]
[1633062122514,8.3170407,3007.1,3006.5,0.003]
[1633062122717,1.14137905,3006.8,3006.5,0.003]
[1633062122915,3.3267607,3007.1,3006.5,0.003]
[1633062123518,3.3267607,3007.1,3006.6,0.2]
[1633062123919,4.42992757,3007.1,3006.6,0.91698787]
[1633062124519,4.42992757,3007.1,3006.6,0.2]
[1633062125321,3.3267607,3007.1,3006.6,0.2]
[1633062125521,0.92942188,3007.3,3006.7,4.08029712]
[1633062125724,0.92942188,3007.3,3006.7,4.28029712]
[1633062126522,1.3937654,3007.3,3007.0,4.98909]
[1633062127924,3.3293526,3007.5,3007.1,1.0]
[1633062128123,3.3293526,3007.5,3006.7,14.25852712]
[1633062128326,3.3293526,3007.5,3006.8,1.0]
[1633062128524,3.3293526,3007.5,3006.7,14.25852712]
[1633062128723,3.3293526,3007.5,3006.8,1.0]
[1633062128923,3.3293526,3007.5,3006.7,14.25852712]
[1633062128924,1.49711746,3007.2,3006.7,14.25852712]
[1633062129123,1.49711746,3007.2,3006.7,13.50439]
[1633062129323,1.49711746,3007.2,3006.7,6.85227]
[1633062130327,1.49711746,3007.2,3006.7,7.83300391]
[1633062131327,1.49711746,3007.2,3006.7,3.52616]
[1633062131526,1.49711746,3007.2,3006.7,0.2]
[1633062132127,4.99265,3007.5,3006.7,5.18965]
[1633062132328,1.10412802,3007.4,3006.7,5.18965]
[1633062132528,0.003,3007.5,3006.9,3.32617]
[1633062132731,0.003,3007.5,3007.0,0.2]
[1633062132928,0.003,3007.5,3007.0,1.2]
[1633062133130,0.003,3007.5,3007.2,5.76606896]
[1633062133330,0.003,3007.5,3007.3,0.2]
[1633062133528,0.003,3007.5,3007.3,1.2]
[1633062134330,0.003,3007.5,3007.3,6.18868]
[1633062134729,0.003,3007.5,3007.3,1.2]
[1633062134929,0.003,3007.5,3007.2,3.32569]
[1633062135129,1.09945133,3007.3,3007.2,3.32569]
[1633062136532,1.09945133,3007.3,3007.2,8.31454]
[1633062136733,1.09945133,3007.3,3007.2,3.32569]
[1633062137636,1.09945133,3007.3,3006.7,6.65215]
[1633062137836,1.09945133,3007.3,3006.5,22.7428]
[1633062138032,1.09945133,3007.3,3006.5,0.203]
[1633062138636,1.09945133,3007.3,3006.6,0.71591762]
[1633062138637,0.73661653,3007.2,3006.6,0.71591762]
[1633062139034,1.09945133,3007.3,3006.6,0.71591762]
[1633062139436,1.09945133,3007.3,3006.6,1.71591762]
[1633062140035,1.82181094,3007.3,3006.6,1.71591762]
[1633062140636,6.81166094,3007.3,3006.6,6.70569762]
[1633062141433,6.08930133,3007.3,3006.6,6.70569762]
[1633062141635,0.003,3007.5,3006.6,6.70569762]
[1633062141837,0.003,3007.5,3006.8,3.32618]
[1633062142039,0.003,3007.5,3006.9,1.0]
[1633062142436,0.003,3007.5,3006.8,3.32618]
[1633062143037,1.38812754,3007.4,3006.9,4.98933]
[1633062143239,1.38812754,3007.4,3006.9,5.98933]
[1633062143441,1.38812754,3007.4,3006.8,3.32618]
[1633062144440,0.003,3007.5,3006.8,3.32618]
[1633062144839,1.10739843,3007.5,3006.8,3.32618]
[1633062145643,1.11115184,3007.4,3006.9,4.9893]
[1633062145843,1.11115184,3007.4,3006.8,3.32618]
[1633062146245,0.8160266,3007.2,3006.8,3.32618]
[1633062148447,0.8160266,3007.2,3006.9,4.32625]
[1633062149651,1.10496675,3007.1,3006.5,0.003]
[1633062149849,2.45288024,3007.0,3006.5,0.003]
[1633062150047,3.25687959,3007.2,3006.5,0.003]
[1633062150248,1.10515052,3007.1,3006.5,0.003]
[1633062150909,1.25154985,3006.9,3006.5,0.003]
[1633062151510,3.3270539,3007.0,3006.5,0.003]
[1633062153110,0.8160266,3007.2,3006.5,0.003]
[1633062153111,6.65412,3007.2,3006.5,0.003]
[1633062153311,1.10540321,3007.1,3006.5,0.003]
[1633062153713,1.10540321,3007.1,3006.5,1.54555399]
[1633062153918,1.10540321,3007.1,3006.5,0.003]
[1633062154116,1.10540321,3007.1,3006.8,0.7291296]
[1633062154315,1.10557549,3007.0,3006.8,0.7291296]
[1633062154514,0.57475367,3007.3,3006.8,0.7291296]
[1633062154515,1.10558739,3006.9,3006.8,0.7291296]
[1633062154714,1.10556686,3006.9,3006.8,0.7291296]
[1633062154916,1.6803226,3007.3,3006.8,0.7291296]
[1633062155116,1.10555815,3007.2,3006.8,2.1243906]
[1633062155314,1.10566323,3007.1,3006.8,2.1243906]
[1633062155515,0.57474266,3007.4,3006.9,3.32628]
[1633062155714,1.10564197,3007.4,3006.9,3.32628]
[1633062156915,6.09535197,3007.4,3006.9,3.32628]
[1633062157115,1.10569558,3007.3,3006.8,0.7291296]
[1633062157518,1.10583742,3007.2,3006.8,0.7291296]
[1633062157715,1.10583122,3007.1,3006.8,0.7291296]
[1633062157915,1.68065428,3007.4,3006.8,0.7291296]
[1633062158115,6.67042428,3007.4,3006.8,0.7291296]
[1633062158316,1.10600552,3007.3,3006.8,0.7291296]
[1633062158516,1.10600552,3007.3,3006.8,1.7291296]
[1633062158715,1.10600552,3007.3,3006.8,1.7252646]
[1633062159319,6.09586552,3007.3,3006.8,1.7252646]
[1633062159518,1.10607268,3007.2,3006.8,1.7252646]
[1633062159719,1.26574585,3007.1,3006.8,1.7252646]
[1633062159920,1.26574585,3007.1,3006.8,1.0]
[1633062160318,4.98986,3007.3,3006.8,1.0]
[1633062160519,1.10606445,3007.2,3006.8,1.0]
[1633062160718,1.10608862,3007.1,3006.8,1.0]
[1633062160917,1.10612637,3007.0,3006.7,3.32639]
[1633062161120,0.57506871,3007.3,3006.6,0.89699309]
[1633062161721,1.29007611,3007.0,3006.6,0.89699309]
[1633062161918,1.10614591,3006.9,3006.6,0.89699309]
[1633062162117,0.57506871,3007.3,3006.6,0.89699309]
[1633062162317,1.10610573,3007.2,3006.6,0.89699309]
[1633062162517,1.10610739,3007.1,3006.6,1.89699309]
[1633062162717,1.10611392,3007.0,3006.6,5.22351309]
[1633062162919,2.98104302,3007.4,3006.6,4.22351309]
[1633062163119,1.10612935,3007.3,3006.7,8.316]
[1633062163321,1.10612935,3007.3,3006.7,3.3264]
[1633062163521,1.1062306,3007.2,3006.8,1.0]
[1633062163719,1.1062595,3007.1,3006.8,1.0]
[1633062164520,1.1062595,3007.1,3006.8,5.98948]
[1633062164719,1.1062595,3007.1,3006.8,1.0]
[1633062166321,1.10720331,3007.0,3006.8,1.0]
[1633062166521,5.56521556,3007.4,3006.8,1.0]
[1633062166723,1.10718865,3007.3,3006.8,1.0]
[1633062167522,2.26600846,3007.3,3006.8,5.98951]
[1633062167723,1.10719294,3007.2,3007.1,0.98014126]
[1633062167924,0.003,3007.5,3007.1,2.53088015]
[1633062168124,0.003,3007.5,3007.2,1.75048636]
[1633062168323,1.1103414,3007.5,3007.2,2.6642]
[1633062168522,0.003,3007.5,3007.3,2.5507431]
[1633062168725,0.003,3007.5,3007.3,6.18821]
[1633062169524,1.11058796,3007.5,3007.3,6.18821]
[1633062169722,0.003,3007.5,3007.4,1.55072429]
[1633062169922,0.003,3007.5,3007.3,9.51381]
[1633062170123,0.003,3007.5,3007.4,1.55051178]
[1633062170322,0.003,3007.5,3007.3,9.51381]
[1633062170722,0.003,3007.5,3007.4,1.55049109]
[1633062171924,0.003,3007.5,3007.3,9.51381]
[1633062172129,0.003,3007.5,3007.3,1.2]
[1633062172325,0.003,3007.5,3007.3,0.2]
[1633062173124,0.003,3007.5,3007.3,0.25789]
[1633062173326,0.003,3007.5,3007.4,1.55011802]
[1633062173525,0.003,3007.5,3007.3,6.24626]
[1633062174126,0.003,3007.5,3007.3,6.18837]
[1633062174329,1.50961848,3007.5,3007.3,6.18837]
[1633062174526,0.003,3007.5,3007.3,6.18837]
[1633062175128,0.003,3007.5,3007.4,1.294]
[1633062175329,0.003,3007.5,3007.4,7.41215656]
[1633062175526,0.003,3007.5,3007.4,6.71272922]
[1633062175727,0.003,3007.5,3007.4,9.81421553]
[1633062176128,0.003,3007.5,3007.4,9.81287718]
[1633062176929,0.003,3008.0,3007.8,3.80302268]
[1633062177130,0.003,3008.0,3007.9,8.10316503]
[1633062177337,0.003,3008.0,3007.9,9.10316503]
[1633062177729,0.003,3008.0,3007.9,19.12102991]
[1633062177929,0.003,3008.0,3007.9,22.61382113]
[1633062178230,0.003,3008.0,3007.9,27.60031113]
[1633062179028,0.003,3008.0,3007.9,27.59763375]
[1633062179227,0.003,3008.0,3007.9,25.5070032]
[1633062180630,0.003,3008.0,3007.9,16.4970032]
[1633062180831,0.003,3008.0,3007.9,17.4992582]
[1633062182842,0.003,3008.5,3008.4,0.852799]
[1633062183032,0.003,3008.5,3008.4,2.869399]
[1633062183232,0.003,3008.5,3008.4,3.50849385]
[1633062183432,0.003,3008.5,3008.4,9.49461385]
[1633062186039,0.003,3008.5,3008.4,10.78861385]
[1633062186237,0.003,3009.0,3008.4,20.3276008]
[1633062186439,0.003,3009.0,3008.5,6.5343116]
[1633062186636,0.003,3009.0,3008.6,0.2]
[1633062186835,0.003,3009.0,3008.6,1.60365692]
[1633062187035,0.003,3009.0,3008.6,2.23870423]
[1633062187237,0.003,3009.0,3008.7,4.98475]
[1633062187436,0.003,3009.0,3008.9,0.849183]
[1633062187638,0.003,3009.0,3008.9,1.53395611]
[1633062188437,0.003,3009.0,3008.9,2.53395611]
[1633062188637,0.003,3009.0,3008.9,1.53395611]
[1633062188840,0.003,3009.0,3008.9,6.51925611]
[1633062189037,0.003,3009.0,3008.9,7.51925611]
[1633062189237,0.003,3009.0,3008.9,6.67007311]
[1633062191643,0.003,3009.0,3008.9,7.96407311]
[1633062191842,0.003,3009.0,3008.9,9.03273211]
[1633062192441,0.003,3009.0,3008.9,9.96693211]
[1633062193241,0.003,3009.5,3008.9,22.96293211]
[1633062193441,0.003,3009.5,3009.0,5.996]
[1633062193640,0.003,3009.5,3009.2,1.294]
[1633062193842,0.003,3009.5,3009.3,0.2]
[1633062194041,0.003,3009.5,3009.4,5.72776714]
[1633062194242,0.003,3009.5,3009.4,7.59508936]
[1633062194443,0.003,3009.5,3009.4,8.59508936]
[1633062194641,0.003,3009.5,3009.4,8.65561897]
[1633062194842,0.003,3009.5,3009.4,8.13248021]
[1633062195041,0.003,3009.5,3009.4,10.88030643]
[1633062195241,0.003,3009.5,3009.4,9.14248021]
[1633062195642,0.003,3009.5,3009.4,9.79103872]
[1633062195842,0.003,3009.5,3009.4,9.14248021]
[1633062196045,0.003,3009.5,3009.4,9.58332345]
[1633062196243,0.003,3009.5,3009.4,9.14248021]
[1633062196445,0.003,3009.5,3009.4,21.64576967]
[1633062196644,0.003,3009.5,3009.4,26.12940071]
[1633062196846,0.003,3010.0,3009.4,18.5326186]
[1633062197045,0.006,3010.4,3009.9,5.069802]
[1633062197248,0.006,3010.4,3010.0,0.2]
[1633062197447,0.006,3010.4,3010.3,6.22050267]
[1633062197646,0.006,3010.4,3010.3,6.42050267]
[1633062197847,0.006,3010.4,3010.3,7.42050267]
[1633062198047,0.009,3010.5,3010.3,7.42050267]
[1633062198245,0.009,3010.5,3010.4,6.0607]
[1633062198546,0.009,3010.5,3010.4,8.12490601]
[1633062198747,0.009,3010.5,3010.4,9.13490601]
[1633062199546,0.009,3010.5,3010.4,16.12490601]
[1633062199747,0.009,3010.5,3010.4,7.84090601]
[1633062199947,0.009,3010.5,3010.4,8.59920601]
[1633062200148,0.009,3010.5,3010.4,9.89320601]
[1633062200651,0.006,3010.8,3010.7,0.2]
[1633062200849,0.006,3010.8,3010.7,1.7913]
[1633062201049,0.006,3010.8,3010.7,2.7913]
[1633062201449,0.006,3010.8,3010.7,3.8013]
[1633062201850,0.006,3010.8,3010.7,6.77298]
[1633062203252,0.006,3010.8,3010.7,9.06698]
[1633062203450,0.006,3010.8,3010.7,8.78298]
[1633062205450,0.006,3010.8,3010.7,7.77298]
[1633062206453,0.006,3010.8,3010.7,0.4]
[1633062206651,0.006,3010.8,3010.7,0.2]
[1633062207253,0.2,3010.7,3010.0,0.003]
[1633062207453,0.02417407,3010.3,3010.0,0.003]
[1633062207852,0.028769,3010.5,3010.0,0.003]
[1633062208054,0.028769,3010.5,3009.6,0.003]
[1633062208253,0.028769,3010.5,3009.9,0.89565307]
[1633062208653,0.028769,3010.5,3010.0,0.003]
[1633062208654,1.17944952,3010.3,3010.0,0.003]
[1633062209053,0.028769,3010.5,3010.0,0.003]
[1633062209654,0.028769,3010.5,3010.0,3.32255]
[1633062210054,0.028769,3010.5,3010.0,3.32555]
[1633062210253,1.32779486,3010.5,3010.0,3.32555]
[1633062210715,1.29902586,3010.5,3010.0,3.32555]
[1633062210918,1.29902586,3010.5,3010.1,1.0]
[1633062211315,0.96401417,3010.8,3010.1,1.0]
[1633062212522,1.39245403,3010.5,3010.1,1.0]
[1633062214722,3.3227261,3010.4,3010.1,1.0]
[1633062215123,3.3227261,3010.4,3010.1,0.988337]
[1633062216722,3.3227261,3010.4,3010.0,3.32555]
[1633062218122,8.3073961,3010.4,3010.0,0.003]
[1633062218321,3.3227261,3010.4,3010.0,0.003]
[1633062218524,3.3227261,3010.4,3009.9,0.003]
[1633062218925,3.3227261,3010.4,3010.0,0.78029536]
[1633062219123,3.3227261,3010.4,3009.9,0.003]
[1633062219323,8.3073761,3010.4,3010.0,0.003]
[1633062219722,3.3227261,3010.4,3010.0,0.003]
[1633062219925,1.294,3010.2,3010.0,0.003]
[1633062220124,3.3227261,3010.4,3010.0,0.003]
[1633062220125,0.71281869,3010.3,3010.0,0.003]
[1633062220724,0.71281869,3010.3,3009.9,0.003]
[1633062223724,1.23044747,3010.2,3009.9,0.003]
[1633062224824,0.71281869,3010.3,3009.9,0.003]
[1633062225024,0.71281869,3010.3,3009.9,1.003]
[1633062225227,0.71281869,3010.3,3009.9,0.003]
[1633062225425,0.71281869,3010.3,3010.0,0.003]
[1633062225726,1.294,3010.2,3010.0,0.003]
[1633062225926,1.36652507,3010.2,3010.0,0.003]
[1633062226128,4.68951007,3010.2,3009.9,0.003]
[1633062227328,3.322985,3010.2,3009.9,0.003]
[1633062228126,3.322985,3010.2,3009.9,4.98698]
[1633062228527,3.322985,3010.2,3010.0,1.003]
[1633062228926,3.322985,3010.2,3010.0,0.003]
[1633062229328,3.322985,3010.2,3009.9,0.003]
[1633062229729,3.322985,3010.2,3009.9,4.98694]
[1633062229927,0.83075289,3010.6,3010.0,1.0]
[1633062230129,0.83075289,3010.6,3010.0,1.003]
[1633062230730,1.44892601,3010.4,3010.0,0.003]
[1633062231528,4.15321729,3010.6,3010.0,1.003]
[1633062232329,0.96097953,3010.1,3010.0,1.003]
[1633062232531,5.78210252,3010.5,3010.0,0.003]
[1633062232731,3.3232242,3010.5,3010.0,0.003]
[1633062232929,3.3232242,3010.5,3009.8,1.2]
[1633062232930,1.47483543,3010.4,3009.9,0.003]
[1633062233131,4.98484,3010.2,3009.9,0.003]
[1633062233529,4.3276804,3010.2,3009.9,0.003]
[1633062234532,4.2776804,3010.2,3009.9,0.003]
[1633062235531,9.2624304,3010.2,3009.9,0.003]
[1633062235730,4.2776804,3010.2,3009.9,0.003]
[1633062237133,4.98493,3010.1,3009.9,0.003]
[1633062244141,2.31296212,3009.7,3009.5,0.003]
[1633062244340,2.31296212,3009.7,3009.0,0.003]
[1633062244341,15.75450996,3009.2,3009.0,0.003]
[1633062244548,2.51211531,3009.1,3009.0,0.003]
[1633062244737,2.51211531,3009.1,3008.2,11.0526]
[1633062244738,2.51211531,3009.1,3008.3,0.006]
[1633062244941,0.78406519,3008.5,3008.3,0.006]
[1633062245138,2.00349701,3008.5,3008.3,0.006]
[1633062245341,0.78406519,3008.5,3008.3,0.006]
[1633062245739,0.78406519,3008.5,3008.2,0.006]
[1633062246141,4.10912979,3008.5,3008.2,0.006]
[1633062246339,3.3250646,3008.5,3008.2,0.006]
[1633062248344,3.3250646,3008.5,3008.2,1.006]
[1633062248742,3.3250646,3008.5,3008.3,0.006]
[1633062248943,8.3127146,3008.5,3008.3,0.006]
[1633062249544,8.3127146,3008.5,3008.2,0.006]
[1633062249745,3.3250646,3008.5,3008.2,0.006]
[1633062250745,9.9748625,3008.9,3008.3,1.22390387]
[1633062250944,3.3247825,3008.9,3008.2,0.01549211]
[1633062251143,3.3247825,3008.9,3008.4,0.006]
[1633062251343,3.3247825,3008.9,3008.3,0.006]
[1633062251744,4.98732,3008.8,3008.3,0.78765589]
[1633062251945,3.3251517,3008.5,3008.3,0.78765589]
[1633062252145,3.3251517,3008.5,3008.4,0.006]
[1633062253145,3.3251517,3008.5,3008.3,0.006]
[1633062253745,3.3251517,3008.5,3008.3,1.13203625]
[1633062253946,3.3251517,3008.5,3008.3,0.006]
[1633062254149,3.3251517,3008.5,3008.4,0.006]
[1633062254546,4.98725,3008.8,3008.4,0.006]
[1633062254748,3.3247825,3008.9,3008.4,0.006]
[1633062254946,3.3247825,3008.9,3008.5,1.33431731]
[1633062255146,3.3247825,3008.9,3008.3,0.006]
[1633062255349,3.3247825,3008.9,3008.6,0.003]
[1633062255548,1.294,3008.8,3008.6,0.003]
[1633062255749,4.98732,3008.8,3008.6,0.003]
[1633062255951,4.98732,3008.8,3008.3,0.006]
[1633062256149,4.98732,3008.8,3008.6,0.00949083]
[1633062256548,4.98732,3008.8,3008.7,0.003]
[1633062256748,6.28132,3008.8,3008.7,0.003]
[1633062258350,3.3247825,3008.9,3008.7,0.003]
[1633062260557,4.98718,3008.8,3008.7,0.003]
[1633062261759,3.3247825,3008.9,3008.7,0.003]
[1633062261958,14.69194817,3009.2,3008.7,0.003]
[1633062262160,14.69194817,3009.2,3008.9,0.05955]
[1633062262357,0.95835081,3009.1,3008.9,0.25955]
[1633062262558,14.69194817,3009.2,3009.0,0.003]
[1633062263759,19.67850817,3009.2,3009.0,0.003]
[1633062264158,0.80814492,3009.1,3009.0,0.003]
[1633062264958,19.67850817,3009.2,3009.0,0.003]
[1633062265159,14.69194817,3009.2,3009.0,0.003]
[1633062265961,20.54843094,3009.2,3009.0,0.003]
[1633062267362,1.10499869,3009.1,3009.0,0.003]
[1633062267966,14.69194817,3009.2,3009.0,0.003]
[1633062271965,1.09474076,3009.1,3009.0,0.003]
[1633062272565,6.08211076,3009.1,3009.0,0.003]
[1633062272765,4.98737,3009.1,3009.0,0.003]
[1633062273967,6.08207795,3009.1,3009.0,0.003]
[1633062274165,6.08229605,3009.1,3009.0,0.003]
[1633062274566,4.98737,3009.1,3009.0,0.003]
[1633062276170,4.98737,3009.1,3008.9,0.191439]
[1633062278971,18.01691757,3009.2,3008.9,0.191439]
[1633062279172,1.09632941,3009.1,3008.9,0.191439]
[1633062281574,1.09632941,3009.1,3008.9,0.20096272]
[1633062282776,6.08288941,3009.1,3008.9,0.20096272]
[1633062282976,1.09735757,3009.0,3008.9,0.20096272]
[1633062286178,18.01691757,3009.2,3008.9,0.20096272]
[1633062286380,1.09739077,3009.1,3008.9,0.20096272]
[1633062286779,14.69194817,3009.2,3008.9,0.25852572]
[1633062286978,14.69194817,3009.2,3008.9,1.25852572]
[1633062287178,14.69194817,3009.2,3009.0,1.49843735]
[1633062287378,14.69194817,3009.2,3008.9,1.81372922]
[1633062287979,14.69194817,3009.2,3008.9,8.46105922]
[1633062288180,14.69194817,3009.2,3009.0,4.98553]
[1633062288380,14.69194817,3009.2,3009.1,0.2]
[1633062293581,14.69194817,3009.2,3009.1,1.2]
[1633062295183,14.69194817,3009.2,3009.1,0.2]
[1633062296583,14.69194817,3009.2,3009.1,0.96963258]
[1633062298786,14.69194817,3009.2,3009.1,5.95512258]
[1633062298984,14.69194817,3009.2,3009.1,6.95512258]
[1633062299386,14.69194817,3009.2,3009.1,6.18549]
[1633062299588,14.69194817,3009.2,3009.1,1.2]
[1633062299987,14.69194817,3009.2,3009.1,5.1855]
[1633062300184,14.69194817,3009.2,3009.1,0.2]
[1633062300385,14.69194817,3009.2,3009.1,1.14097465]
[1633062301187,14.69194817,3009.2,3009.1,0.2]
[1633062301588,15.79026415,3009.2,3009.1,0.2]
[1633062301786,14.69194817,3009.2,3009.1,0.2]
[1633062302189,14.69194817,3009.2,3009.1,5.18557]
[1633062303188,14.69194817,3009.2,3009.1,6.18557]
[1633062305190,14.69194817,3009.2,3009.1,1.2]
[1633062307396,14.69194817,3009.2,3009.1,0.2]
[1633062307594,15.79087012,3009.2,3009.1,0.188346]
[1633062307794,15.79087012,3009.2,3009.1,3.179746]
[1633062307996,0.003,3009.5,3009.2,0.18294463]
[1633062308195,0.003,3009.5,3009.4,0.072735]
[1633062308394,0.003,3009.5,3009.4,0.272735]
[1633062308793,0.003,3009.5,3009.4,9.68420895]
[1633062308994,0.003,3009.5,3009.4,15.69454406]
[1633062309195,0.003,3010.0,3009.7,2.11877993]
[1633062309394,0.003,3010.5,3010.4,2.3783915]
[1633062309658,0.003,3010.5,3010.4,12.91989698]
[1633062309794,0.003,3010.5,3010.4,10.18282844]
[1633062309999,0.003,3010.5,3010.4,19.69928143]
[1633062310595,0.006,3010.8,3010.4,19.69928143]
[1633062310796,0.006,3010.8,3010.7,5.062744]
[1633062310995,0.006,3010.8,3010.7,11.903894]
[1633062311197,0.006,3011.2,3010.7,32.383894]
[1633062311396,0.006,3011.2,3011.1,4.996]
[1633062311595,0.006,3011.2,3011.1,6.91735571]
[1633062311798,0.006,3011.2,3011.1,7.91735571]
[1633062312195,0.006,3011.2,3011.1,8.86330103]
[1633062312669,0.006,3011.2,3011.1,15.13875103]
[1633062312794,1.706,3011.2,3011.1,13.84475103]
[1633062313995,1.706,3011.2,3011.1,12.89880571]
[1633062314394,1.706,3011.2,3011.1,12.91336496]
[1633062314994,1.706,3011.2,3011.1,13.76890677]
[1633062315656,1.706,3011.2,3011.1,15.12369442]
[1633062316997,1.706,3011.2,3011.1,16.00689442]
[1633062321399,1.706,3011.2,3011.1,15.12369442]
[1633062321663,1.706,3011.2,3011.1,13.76890677]
[1633062322803,1.706,3011.2,3011.1,14.9990145]
[1633062323005,1.706,3011.2,3011.1,13.76890677]
[1633062324003,1.706,3011.2,3011.1,15.17534979]
[1633062329806,1.066,3011.2,3011.1,15.17534979]
[1633062330205,1.066,3011.2,3011.1,13.76890677]
[1633062330405,1.066,3011.2,3011.1,12.91336496]
[1633062330674,1.066,3011.2,3011.1,7.93191496]
[1633062330808,1.066,3011.2,3011.1,6.64215571]
[1633062331005,1.066,3011.2,3011.1,5.64215571]
[1633062332206,2.36,3011.2,3011.1,5.64215571]
[1633062332407,1.066,3011.2,3011.1,5.64215571]
[1633062333407,2.36,3011.2,3011.1,5.64215571]
[1633062338617,2.36,3011.2,3011.1,5.196]
[1633062339677,2.36,3011.2,3011.1,5.71287571]
[1633062340016,2.36,3011.2,3011.1,5.72743604]
[1633062341218,2.36,3011.2,3010.6,1.0]
[1633062341219,1.60522633,3010.8,3010.6,1.0]
[1633062341418,2.29790809,3010.6,3010.5,0.203]
[1633062341617,2.29790809,3010.6,3010.5,0.003]
[1633062341618,3.98880809,3010.6,3010.5,0.003]
[1633062342017,3.98880809,3010.6,3010.4,0.6283915]
[1633062342018,6.43403762,3010.6,3010.4,0.6283915]
[1633062342218,0.78766676,3010.5,3010.4,0.6283915]
[1633062342517,3.15403172,3010.5,3010.4,0.6283915]
[1633062342717,3.35403172,3010.5,3010.4,0.6283915]
[1633062342917,1.494,3010.5,3010.4,9.15e-05]
[1633062343518,3.84211022,3010.5,3010.4,9.15e-05]
[1633062343721,22.73379738,3010.5,3010.4,9.15e-05]
[1633062343919,1.863643,3010.1,3009.8,0.003]
[1633062344119,0.034326,3009.9,3009.7,3.43616793]
[1633062344419,1.65005681,3009.7,3008.6,0.006]
[1633062344618,1.18599751,3008.8,3008.6,0.006]
[1633062344820,2.86409751,3008.8,3008.5,0.009]
[1633062345218,2.86409751,3008.8,3008.6,0.00949075]
[1633062345219,2.33119483,3008.7,3008.6,0.00949075]
[1633062345418,2.86409751,3008.8,3008.6,0.00949075]
[1633062345679,2.86409751,3008.8,3008.6,0.01549075]
[1633062345818,2.86409751,3008.8,3008.7,0.006]
[1633062346220,3.65722048,3008.8,3008.7,0.006]
[1633062346420,4.95122048,3008.8,3008.7,0.006]
[1633062348019,4.97998948,3008.8,3008.7,0.006]
[1633062350019,7.32465052,3008.8,3008.6,0.00949075]
[1633062350217,7.32465052,3008.8,3007.7,0.006]
[1633062350218,19.06254777,3008.7,3007.7,0.006]
[1633062350421,0.028769,3008.1,3007.7,0.006]
[1633062350620,0.028769,3008.1,3007.3,0.009]
[1633062350621,1.45260462,3008.0,3007.3,0.009]
[1633062350818,1.45260462,3008.0,3007.0,0.012]
[1633062350819,0.93991867,3007.4,3007.0,0.012]
[1633062351017,3.37813793,3007.4,3007.0,0.012]
[1633062351919,8.36822793,3007.4,3007.0,0.012]
[1633062352121,1.20108302,3007.3,3007.0,0.012]
[1633062353320,1.7,3007.3,3007.0,0.012]
[1633062354323,6.69019,3007.3,3007.0,0.012]
[1633062354919,1.47059719,3007.1,3006.7,0.012]
[1633062355920,2.40480613,3007.2,3006.7,0.012]
[1633062356120,1.7,3007.3,3006.7,0.012]
[1633062356121,1.7,3007.3,3006.7,3.33812]
[1633062356520,1.7,3007.3,3006.8,0.012]
[1633062356924,1.7,3007.3,3007.0,4.679819]
[1633062357123,3.71160326,3008.5,3007.2,1.85293081]
[1633062357320,1.23632231,3008.5,3007.7,3.32506]
[1633062357520,1.23632231,3008.5,3007.7,1.1882]
[1633062357721,0.028769,3008.1,3007.8,0.006]
[1633062358121,2.41477557,3008.0,3007.8,0.006]
[1633062358321,2.41477557,3008.0,3007.6,0.006]
[1633062358522,7.40374557,3008.0,3007.6,0.006]
[1633062359325,0.028769,3008.7,3007.6,0.006]
[1633062359924,1.64887826,3008.5,3007.6,0.006]
[1633062360126,0.028769,3008.3,3007.6,0.006]
[1633062360323,0.85527367,3007.9,3007.6,0.006]
[1633062360524,1.32549705,3007.8,3007.6,0.006]
[1633062361923,0.85527367,3007.9,3007.6,0.006]
[1633062362127,0.028769,3008.3,3007.6,0.006]
[1633062362323,16.31564,3009.3,3007.6,0.006]
[1633062362324,0.028769,3008.8,3007.6,0.006]
[1633062362523,0.028769,3008.8,3007.9,0.061168]
[1633062362727,8.3128799,3008.9,3007.9,0.261168]
[1633062362923,8.3128799,3008.9,3008.0,0.006]
[1633062362924,1.11688039,3008.4,3008.0,0.006]
[1633062363124,1.432832,3007.9,3007.6,6.65018]
[1633062363325,1.432832,3007.9,3007.7,0.2]
[1633062364526,1.432832,3007.9,3007.8,1.294]
[1633062364731,1.432832,3007.9,3007.8,6.4813]
[1633062365127,1.432832,3007.9,3007.8,5.1873]
[1633062365727,1.432832,3007.9,3007.8,0.2]
[1633062367388,2.69577285,3007.9,3007.8,0.2]
[1633062367590,1.432832,3007.9,3007.8,0.2]
[1633062368988,1.432832,3007.9,3007.8,1.494]
[1633062369190,1.432832,3007.9,3007.8,2.6458]
[1633062369390,0.432832,3007.9,3007.8,2.6700642]
[1633062369589,0.432832,3007.9,3007.8,4.11367878]
[1633062369994,0.432832,3007.9,3007.8,9.10073878]
[1633062370390,0.432832,3007.9,3007.8,1.92756302]
[1633062370591,0.432832,3007.9,3007.8,0.2]
[1633062372595,0.432832,3007.9,3007.8,1.494]
[1633062372793,0.432832,3007.9,3007.8,2.0626132]
[1633062372992,0.432832,3007.9,3007.8,1.494]
[1633062373794,0.432832,3007.9,3007.8,0.2]
[1633062375393,0.432832,3007.9,3007.8,1.2970982]
[1633062375594,0.432832,3007.9,3007.8,1.83722434]
[1633062375796,0.432832,3007.9,3007.8,1.89701856]
[1633062375996,0.432832,3007.9,3007.8,6.72742829]
[1633062376198,0.432832,3007.9,3007.8,6.2846082]
[1633062376395,0.432832,3007.9,3007.8,7.5786082]
[1633062376595,0.432832,3007.9,3007.8,8.13165959]